bitfinex/quotes_BTCUSD_20250303
["timestamp","ask_amount","ask_price","bid_price","bid_amount"]
[1741004660386,0.14842444,93320.0,93319.0,0.007]
[1741004660542,0.14842444,93320.0,93319.0,0.167738]
[1741004660746,0.14030869,93320.0,93319.0,0.167738]
[1741004660944,0.14130869,93320.0,93319.0,0.174738]
[1741004661170,0.1493684,93320.0,93319.0,0.014]
[1741004661552,0.1493684,93320.0,93319.0,0.174738]
[1741004662431,0.1493684,93320.0,93319.0,0.014]
[1741004662553,0.15086726,93320.0,93319.0,0.014]
[1741004662766,0.3101054,93320.0,93319.0,0.014]
[1741004662961,0.62135669,93320.0,93319.0,0.014]
[1741004663473,0.46061969,93320.0,93319.0,0.174738]
[1741004663903,0.46061969,93320.0,93319.0,0.014]
[1741004664103,0.62135669,93320.0,93319.0,0.014]
[1741004664309,0.62035669,93320.0,93319.0,0.007]
[1741004664470,0.62135669,93320.0,93319.0,0.007]
[1741004664671,0.38221969,93320.0,93309.0,0.0001703]
[1741004664922,0.08099886,93319.0,93309.0,0.0001703]
[1741004665098,0.08099886,93319.0,93318.0,0.16074]
[1741004665291,0.0795,93319.0,93318.0,0.16074]
[1741004666361,0.0795,93319.0,93309.0,0.0001703]
[1741004666603,0.00149886,93318.0,93317.0,0.160742]
[1741004666804,0.0795,93319.0,93318.0,0.16074]
[1741004667120,0.0805,93319.0,93318.0,0.16774]
[1741004667452,0.0805,93319.0,93318.0,0.1680804]
[1741004667658,0.0815,93319.0,93318.0,0.1740804]
[1741004668259,0.0805,93319.0,93318.0,0.1670804]
[1741004668461,0.0815,93319.0,93318.0,0.1670804]
[1741004668830,0.39175129,93319.0,93318.0,0.1670804]
[1741004669160,0.39175129,93319.0,93318.0,0.1740804]
[1741004669161,0.39275129,93319.0,93318.0,0.1740804]
[1741004669402,0.40036808,93319.0,93318.0,0.0133404]
[1741004669813,0.57791573,93319.0,93318.0,0.0133404]
[1741004670829,0.41717773,93319.0,93318.0,0.1740804]
[1741004672957,0.41617773,93319.0,93318.0,0.1670804]
[1741004673762,0.41617773,93319.0,93318.0,0.1680804]
[1741004673935,0.41717773,93319.0,93318.0,0.1740804]
[1741004674352,0.02642644,93319.0,93318.0,0.1740804]
[1741004674549,0.02642644,93319.0,93318.0,0.18862125]
[1741004674751,0.01880965,93319.0,93318.0,0.18862125]
[1741004675353,0.01880965,93319.0,93318.0,0.1740804]
[1741004675582,0.10200965,93319.0,93318.0,0.1740804]
[1741004675768,0.0852,93319.0,93318.0,0.1740804]
[1741004677399,0.002,93319.0,93318.0,0.1740804]
[1741004679013,0.01880866,93319.0,93318.0,0.1740804]
[1741004679213,0.01880866,93319.0,93318.0,0.0133404]
[1741004679411,0.02145715,93319.0,93318.0,0.1740804]
[1741004680120,0.02145715,93319.0,93318.0,0.0133404]
[1741004681506,0.02295601,93319.0,93318.0,0.0133404]
[1741004681947,0.18369401,93319.0,93318.0,0.0133404]
[1741004682327,0.30849401,93319.0,93318.0,0.0133404]
[1741004682536,0.30699515,93319.0,93318.0,0.0133404]
[1741004682738,0.14625715,93319.0,93318.0,0.0133404]
[1741004682940,0.30699515,93319.0,93318.0,0.0133404]
[1741004683407,0.61824644,93319.0,93318.0,0.0133404]
[1741004684126,0.91824644,93319.0,93318.0,0.0133404]
[1741004685080,0.91824644,93319.0,93318.0,0.0003404]
[1741004685285,0.91924644,93319.0,93318.0,0.0063404]
[1741004685684,0.90543778,93319.0,93318.0,0.0063404]
[1741004685890,0.90443778,93319.0,93318.0,0.0053404]
[1741004686284,0.90443778,93319.0,93318.0,0.0003404]
[1741004686486,0.90443778,93319.0,93318.0,0.0013404]
[1741004686687,0.90443778,93319.0,93318.0,0.0023404]
[1741004688271,0.90443778,93319.0,93318.0,0.0013404]
[1741004688712,0.90543778,93319.0,93318.0,0.0013404]
[1741004688896,0.90543778,93319.0,93318.0,0.0003404]
[1741004689046,0.92124823,93319.0,93318.0,0.0003404]
[1741004689817,0.92124823,93319.0,93318.0,0.0013404]
[1741004695804,0.90443778,93319.0,93318.0,0.0013404]
[1741004697239,0.44369978,93319.0,93318.0,0.0013404]
[1741004697463,0.44369978,93319.0,93318.0,0.1620804]
[1741004697464,0.31889978,93319.0,93318.0,0.1620804]
[1741004698072,0.31125129,93319.0,93318.0,0.0013404]
[1741004698420,0.31886759,93319.0,93318.0,0.0003404]
[1741004698620,0.31886759,93319.0,93318.0,0.0043404]
[1741004699087,0.31886759,93319.0,93318.0,0.0073404]
[1741004699088,0.4964145,93319.0,93318.0,0.0073404]
[1741004699305,0.5737145,93319.0,93318.0,0.0073404]
[1741004700118,0.4129765,93319.0,93318.0,0.0073404]
[1741004700710,0.5737145,93319.0,93318.0,0.0073404]
[1741004701491,0.5737145,93319.0,93318.0,0.0033404]
[1741004702087,0.5737145,93319.0,93318.0,0.0063404]
[1741004703155,0.6222849,93319.0,93318.0,0.0063404]
[1741004703623,0.6222849,93319.0,93292.0,0.214379]
[1741004703624,0.0752,93303.0,93280.0,0.01454085]
[1741004703838,0.00149886,93302.0,93282.0,0.01454085]
[1741004704038,0.009013,93302.0,93300.0,0.160771]
[1741004704249,0.009013,93302.0,93298.0,0.214365]
[1741004704467,0.009013,93302.0,93282.0,0.02527957]
[1741004704670,0.02432524,93302.0,93301.0,0.160769]
[1741004704874,0.00011962,93302.0,93301.0,0.160769]
[1741004705027,0.01693053,93302.0,93301.0,0.160769]
[1741004705458,0.00011962,93302.0,93301.0,0.160769]
[1741004705628,0.00211962,93302.0,93301.0,0.160769]
[1741004705831,0.00111962,93302.0,93301.0,0.160769]
[1741004706033,0.00011962,93302.0,93299.0,0.214362]
[1741004706244,0.00011962,93302.0,93301.0,0.167769]
[1741004706245,0.00869885,93302.0,93301.0,0.167769]
[1741004707515,0.00211962,93302.0,93301.0,0.167769]
[1741004708145,0.00111962,93302.0,93301.0,0.160769]
[1741004708342,0.01793047,93302.0,93301.0,0.160769]
[1741004708545,0.01893047,93302.0,93301.0,0.160769]
[1741004708750,0.02550249,93302.0,93301.0,0.160769]
[1741004708947,0.01793047,93302.0,93301.0,0.16058114]
[1741004709150,0.01893047,93302.0,93301.0,0.16558114]
[1741004709750,0.09973047,93302.0,93301.0,0.16558114]
[1741004710119,0.1073182,93302.0,93301.0,0.16558114]
[1741004711006,0.1565182,93302.0,93301.0,0.16558114]
[1741004711291,0.1565182,93302.0,93301.0,0.005]
[1741004711670,0.1565182,93302.0,93301.0,0.165769]
[1741004711872,0.1565182,93302.0,93301.0,0.005]
[1741004712409,0.15801706,93302.0,93301.0,0.005]
[1741004713490,0.46926835,93302.0,93301.0,0.005]
[1741004713704,0.46776949,93302.0,93301.0,0.005]
[1741004714314,0.46776949,93302.0,93301.0,0.0051704]
[1741004716032,0.45095864,93302.0,93301.0,0.0051704]
[1741004716732,0.61172664,93302.0,93301.0,0.0051704]
[1741004716940,0.92287781,93302.0,93301.0,0.0051704]
[1741004717160,0.160797,93285.0,93284.0,0.03978733]
[1741004717367,0.666397,93285.0,93284.0,0.03978733]
[1741004717594,0.98517367,93285.0,93284.0,0.03978733]
[1741004717796,1.08517367,93285.0,93284.0,0.03978733]
[1741004718004,0.460825,93269.0,93267.0,0.0001703]
[1741004718178,0.74205129,93269.0,93267.0,0.0001703]
[1741004718376,0.9103566,93269.0,93267.0,0.0001703]
[1741004719176,0.76635063,93269.0,93267.0,0.0001703]
[1741004719330,0.46647019,93269.0,93268.0,0.1649963]
[1741004720281,0.46647019,93269.0,93266.0,0.1816046]
[1741004720282,0.33667019,93269.0,93266.0,0.1816046]
[1741004720514,0.33667019,93269.0,93268.0,0.160826]
[1741004721102,0.33567019,93269.0,93268.0,0.160826]
[1741004721304,0.0244189,93269.0,93268.0,0.160826]
[1741004721511,0.01793859,93269.0,93268.0,0.160826]
[1741004721863,0.01693859,93269.0,93268.0,0.160826]
[1741004722095,0.01793859,93269.0,93268.0,0.162826]
[1741004723416,0.01693859,93269.0,93268.0,0.160826]
[1741004724105,0.01893859,93269.0,93268.0,0.163826]
[1741004725784,0.00211956,93269.0,93268.0,0.1639964]
[1741004728527,0.00215956,93269.0,93268.0,0.1639964]
[1741004730349,0.00215956,93269.0,93268.0,0.0031704]
[1741004730755,0.01897617,93269.0,93268.0,0.0031704]
[1741004730900,0.14897617,93269.0,93268.0,0.0031704]
[1741004731102,0.15643968,93269.0,93268.0,0.0031704]
[1741004731303,0.15643968,93269.0,93268.0,0.1639964]
[1741004731718,0.14897617,93269.0,93268.0,0.1639964]
[1741004731922,0.15546069,93269.0,93268.0,0.1639964]
[1741004732119,0.14797617,93269.0,93268.0,0.1659964]
[1741004732478,0.01697617,93269.0,93268.0,0.1629964]
[1741004732909,0.01697617,93269.0,93268.0,0.1659964]
[1741004735178,0.01697617,93269.0,93268.0,0.0051704]
[1741004735537,0.02438163,93269.0,93268.0,0.1659964]
[1741004735661,0.02438163,93269.0,93268.0,0.0051704]
[1741004736308,0.00756502,93269.0,93268.0,0.0051704]
[1741004736887,0.00015956,93269.0,93268.0,0.1659964]
[1741004737818,0.00050056,93269.0,93268.0,0.1659964]
[1741004738491,0.00050056,93269.0,93268.0,0.0051704]
[1741004738922,0.00050056,93269.0,93268.0,0.1659964]
[1741004739136,0.00790489,93269.0,93268.0,0.0051704]
[1741004739342,0.00050056,93269.0,93268.0,0.0051704]
[1741004739541,0.01731818,93269.0,93268.0,0.0051704]
[1741004739750,0.01731818,93269.0,93268.0,0.1659964]
[1741004739751,0.02472251,93269.0,93268.0,0.1659964]
[1741004740163,0.01731818,93269.0,93268.0,0.1659964]
[1741004744289,0.01731818,93269.0,93268.0,0.18588147]
[1741004745748,0.00050056,93269.0,93268.0,0.18588147]
[1741004746928,0.00050056,93269.0,93268.0,0.20042232]
[1741004749348,0.00050056,93269.0,93268.0,0.19742232]
[1741004749550,0.00050056,93269.0,93268.0,0.20042232]
[1741004750007,0.00050056,93269.0,93268.0,0.49842232]
[1741004750434,0.01681555,93286.0,93285.0,0.17533785]
[1741004751069,0.048,93305.0,93301.0,0.160769]
[1741004751271,0.048,93305.0,93301.0,0.159769]
[1741004751527,0.00046034,93302.0,93301.0,0.159769]
[1741004751743,0.01727207,93302.0,93301.0,0.158769]
[1741004752157,0.01727207,93302.0,93301.0,0.17765407]
[1741004752312,0.01727207,93302.0,93301.0,0.19219492]
[1741004752717,0.01727207,93302.0,93301.0,0.19619492]
[1741004753149,0.01727207,93302.0,93301.0,0.19919492]
[1741004755778,0.00046034,93302.0,93301.0,0.19919492]
[1741004760909,0.00046034,93302.0,93301.0,0.20069518]
[1741004761086,0.00046034,93302.0,93301.0,0.52025173]
[1741004762060,0.00046034,93302.0,93301.0,0.51625173]
[1741004762455,0.00046034,93302.0,93301.0,0.52225173]
[1741004763031,0.00046034,93302.0,93301.0,0.51925173]
[1741004763233,0.00046034,93302.0,93301.0,0.52325173]
[1741004763759,0.00046034,93302.0,93301.0,0.51925173]
[1741004763947,0.00146034,93302.0,93301.0,0.52625173]
[1741004764212,0.00146034,93302.0,93301.0,0.52025173]
[1741004764408,0.00146034,93302.0,93301.0,0.52725173]
[1741004764608,0.00146034,93302.0,93301.0,0.50736666]
[1741004767687,0.00146034,93302.0,93301.0,0.52725173]
[1741004767908,0.00146034,93302.0,93301.0,0.50619492]
[1741004769441,0.00146034,93302.0,93301.0,1.5729947]
[1741004771929,0.00146034,93302.0,93301.0,1.59287977]
[1741004772714,0.00146034,93302.0,93301.0,1.29287977]
[1741004772921,0.00146034,93302.0,93301.0,0.20619492]
[1741004773335,0.01827164,93302.0,93301.0,0.20619492]
[1741004773893,0.01827164,93302.0,93301.0,0.19936532]
[1741004774093,0.01827164,93302.0,93301.0,0.20636532]
[1741004774298,0.09947164,93302.0,93301.0,0.03405547]
[1741004774504,0.1054533,93302.0,93301.0,0.18782447]
[1741004774859,0.09947164,93302.0,93301.0,0.1749394]
[1741004775069,0.09947164,93302.0,93301.0,0.0141704]
[1741004775297,0.26721313,93302.0,93301.0,0.0141704]
[1741004775498,0.31261313,93302.0,93301.0,0.0141704]
[1741004775707,0.31968512,93302.0,93291.0,0.01988507]
[1741004775875,0.287585,93292.0,93291.0,0.01988507]
[1741004776078,0.1336632,93292.0,93291.0,0.01988507]
[1741004776557,0.1336632,93292.0,93291.0,0.160787]
[1741004776793,0.1268,93292.0,93291.0,0.17532785]
[1741004777627,0.1268,93292.0,93291.0,0.18032785]
[1741004777920,0.1268,93292.0,93291.0,0.17932785]
[1741004778078,0.1268,93292.0,93291.0,0.167787]
[1741004778803,0.14361439,93292.0,93291.0,0.167787]
[1741004779120,0.14361439,93292.0,93291.0,0.007]
[1741004779121,0.30439939,93292.0,93291.0,0.007]
[1741004779332,0.31130975,93292.0,93291.0,0.007]
[1741004779927,0.31130975,93292.0,93291.0,0.003]
[1741004780130,0.0762,93291.0,93275.0,0.01097457]
[1741004780338,0.0762,93289.0,93261.0,0.01454085]
[1741004780497,0.0752,93289.0,93288.0,0.160792]
[1741004780699,0.0752,93289.0,93268.0,0.01086756]
[1741004780700,0.00585504,93288.0,93268.0,0.0001704]
[1741004780902,0.0466,93287.0,93268.0,0.0001704]
[1741004781115,0.160825,93269.0,93268.0,0.0001704]
[1741004781327,0.160819,93273.0,93268.0,0.0001704]
[1741004781534,0.0066867,93269.0,93268.0,0.1609964]
[1741004781743,0.01681768,93272.0,93271.0,0.160821]
[1741004783110,0.02357139,93272.0,93271.0,0.160821]
[1741004783310,0.02357139,93272.0,93268.0,0.0001704]
[1741004783516,0.001,93269.0,93268.0,0.0011704]
[1741004783715,0.001,93269.0,93268.0,0.1619964]
[1741004783917,0.29598629,93269.0,93268.0,0.0011704]
[1741004784121,0.29498629,93269.0,93268.0,0.0001704]
[1741004784700,0.60623758,93269.0,93268.0,0.0001704]
[1741004786299,0.60723758,93269.0,93268.0,0.0051704]
[1741004787160,0.60823758,93269.0,93268.0,0.0001704]
[1741004787732,0.98631758,93269.0,93268.0,0.0001704]
[1741004788084,0.98631758,93269.0,93250.0,0.0003406]
[1741004788085,0.288256,93251.0,93250.0,0.0003406]
[1741004788307,0.288256,93251.0,93250.0,0.00046016]
[1741004788711,0.29496598,93251.0,93250.0,0.00046016]
[1741004788917,0.31178674,93251.0,93250.0,0.00046016]
[1741004789619,0.31178674,93251.0,93250.0,0.00446016]
[1741004790515,0.32239794,93251.0,93250.0,0.00446016]
[1741004790732,0.63364923,93251.0,93250.0,0.00446016]
[1741004791751,0.287263,93247.0,93238.0,0.0301704]
[1741004791955,0.59851429,93247.0,93238.0,0.0301704]
[1741004792121,0.60512261,93247.0,93246.0,0.00191602]
[1741004792319,0.73120261,93247.0,93246.0,0.00191602]
[1741004792515,0.160876,93239.0,93238.0,0.0301704]
[1741004792715,0.29197486,93239.0,93238.0,0.0301704]
[1741004792921,0.29700668,93239.0,93238.0,0.0301704]
[1741004793165,0.38991133,93239.0,93238.0,0.0301704]
[1741004793543,0.05,93234.0,93212.0,0.0001703]
[1741004793720,0.288197,93227.0,93226.0,0.00029005]
[1741004794164,0.29474571,93227.0,93226.0,0.0001961]
[1741004794540,0.3115719,93227.0,93226.0,0.0001961]
[1741004795774,0.29474571,93227.0,93226.0,0.0001961]
[1741004797203,0.605997,93227.0,93226.0,0.0001961]
[1741004797424,0.655997,93227.0,93226.0,0.0001961]
[1741004798167,0.656997,93227.0,93226.0,0.0001961]
[1741004798716,0.67382357,93227.0,93226.0,0.0001961]
[1741004799313,0.67282357,93227.0,93226.0,0.0001961]
[1741004799518,0.67582357,93227.0,93226.0,0.0001961]
[1741004799722,0.62882357,93227.0,93226.0,0.0001961]
[1741004800363,0.70490357,93227.0,93226.0,0.0001961]
[1741004804951,0.62882357,93227.0,93226.0,0.0001961]
[1741004805158,0.54400657,93227.0,93226.0,0.0001961]
[1741004805363,0.46792657,93227.0,93226.0,0.0001961]
[1741004805782,0.4511,93227.0,93226.0,0.0001961]
[1741004806320,0.4451,93227.0,93226.0,0.0001961]
[1741004806520,0.4471,93227.0,93226.0,0.0001961]
[1741004806977,0.4471,93227.0,93226.0,0.1610951]
[1741004807138,0.4461,93227.0,93226.0,0.1610951]
[1741004807338,0.4471,93227.0,93226.0,0.1610951]
[1741004807539,0.4461,93227.0,93226.0,0.1610951]
[1741004807753,0.606997,93227.0,93226.0,0.0001961]
[1741004808715,0.4471,93227.0,93226.0,0.0001961]
[1741004808943,0.4471,93227.0,93226.0,0.1610951]
[1741004809149,0.4471,93227.0,93226.0,0.0001961]
[1741004809348,0.607997,93227.0,93226.0,0.0001961]
[1741004810328,0.62482196,93227.0,93226.0,0.0001961]
[1741004812716,0.46392496,93227.0,93226.0,0.1610951]
[1741004813129,0.33662496,93227.0,93226.0,0.1610951]
[1741004814224,0.33662496,93227.0,93226.0,0.0001961]
[1741004814430,0.49752196,93227.0,93226.0,0.0001961]
[1741004814568,0.33662496,93227.0,93226.0,0.0001961]
[1741004814982,0.33662496,93227.0,93226.0,0.1610951]
[1741004814983,0.33562496,93227.0,93226.0,0.1610951]
[1741004815537,0.33462496,93227.0,93226.0,0.1610951]
[1741004815709,0.32962496,93227.0,93226.0,0.1610951]
[1741004815852,0.31788232,93227.0,93226.0,0.1620951]
[1741004816291,0.31688232,93227.0,93226.0,0.1610951]
[1741004816749,0.31788232,93227.0,93226.0,0.1620951]
[1741004816996,0.00663103,93227.0,93226.0,0.17663595]
[1741004817251,0.001,93227.0,93226.0,0.47663595]
[1741004819476,0.0013412,93227.0,93226.0,0.47663595]
[1741004821788,0.0003412,93227.0,93226.0,0.47563595]
[1741004822003,0.0013412,93227.0,93226.0,0.47963595]
[1741004822202,0.0023412,93227.0,93226.0,0.48663595]
[1741004823516,0.0023412,93227.0,93226.0,0.1720951]
[1741004824781,0.0023412,93227.0,93226.0,0.0111961]
[1741004825004,0.16888961,93227.0,93226.0,0.0111961]
[1741004825179,0.17038847,93227.0,93226.0,0.0111961]
[1741004825811,0.16838847,93227.0,93226.0,0.0001961]
[1741004826190,0.16838847,93227.0,93226.0,0.0071961]
[1741004826533,0.16838847,93227.0,93226.0,0.0041961]
[1741004826742,0.16838847,93227.0,93226.0,0.0001961]
[1741004826883,0.16838847,93227.0,93226.0,0.0071961]
[1741004827116,0.60673976,93227.0,93226.0,0.0071961]
[1741004827330,0.6052409,93227.0,93226.0,0.0071961]
[1741004827574,0.6052409,93227.0,93226.0,0.0031961]
[1741004827947,0.6812809,93227.0,93226.0,0.0031961]
[1741004828310,0.6812809,93227.0,93226.0,0.0021961]
[1741004828534,0.6812809,93227.0,93226.0,0.0041961]
[1741004828756,0.69810541,93227.0,93226.0,0.0041961]
[1741004829159,0.74810541,93227.0,93226.0,0.0041961]
[1741004829962,1.04810541,93227.0,93226.0,0.0041961]
[1741004830166,0.160901,93225.0,93224.0,0.0001707]
[1741004830402,0.54019986,93225.0,93224.0,0.00056831]
[1741004830606,0.54437125,93225.0,93224.0,0.00056831]
[1741004831101,0.59207125,93225.0,93224.0,0.00056831]
[1741004831667,0.287116,93216.0,93215.0,0.0021803]
[1741004832208,0.29270451,93216.0,93215.0,0.0021803]
[1741004832445,0.30953256,93216.0,93215.0,0.0021803]
[1741004832780,0.60953256,93216.0,93215.0,0.0021803]
[1741004833812,0.61353256,93216.0,93215.0,0.0021803]
[1741004834412,0.60953256,93216.0,93215.0,0.0021803]
[1741004834615,0.61553256,93216.0,93215.0,0.0021803]
[1741004835227,0.92678385,93216.0,93215.0,0.0021803]
[1741004835698,0.9099558,93216.0,93215.0,0.00199237]
[1741004836264,0.9039558,93216.0,93215.0,0.00199237]
[1741004836586,0.9099558,93216.0,93215.0,0.00199237]
[1741004837323,0.9099558,93216.0,93215.0,0.00134368]
[1741004839150,0.92678477,93216.0,93215.0,0.00134368]
[1741004840132,0.84190877,93216.0,93215.0,0.00134368]
[1741004840483,1.00282477,93216.0,93215.0,0.00134368]
[1741004842323,0.92678477,93216.0,93215.0,0.00134368]
[1741004842519,0.62678477,93216.0,93215.0,0.01762778]
[1741004842723,0.62678477,93216.0,93215.0,0.00134368]
[1741004842923,0.46586877,93216.0,93215.0,0.16226168]
[1741004843124,0.46586877,93216.0,93215.0,0.00134368]
[1741004843327,0.62678477,93216.0,93215.0,0.00134368]
[1741004843934,0.62712557,93216.0,93215.0,0.00134368]
[1741004845715,0.6102966,93216.0,93215.0,0.00134368]
[1741004848261,0.4493806,93216.0,93215.0,0.00134368]
[1741004848463,0.3231806,93216.0,93215.0,0.00134368]
[1741004849541,0.3171806,93216.0,93215.0,0.00134368]
[1741004850285,0.3340075,93216.0,93215.0,0.00134368]
[1741004850683,0.3340475,93216.0,93215.0,0.00134368]
[1741004852263,0.4949635,93216.0,93215.0,0.00134368]
[1741004852663,0.3340475,93216.0,93215.0,0.00134368]
[1741004853446,0.3360475,93216.0,93215.0,0.00134368]
[1741004854035,0.4969635,93216.0,93215.0,0.00134368]
[1741004855976,0.4801366,93216.0,93215.0,0.00134368]
[1741004856177,0.3192206,93216.0,93215.0,0.16226168]
[1741004856384,0.3192206,93216.0,93215.0,0.00134368]
[1741004857000,0.4801366,93216.0,93215.0,0.00134368]
[1741004857215,0.5553366,93216.0,93215.0,0.00134368]
[1741004857360,0.9019366,93216.0,93215.0,0.00134368]
[1741004858198,0.92314183,93216.0,93215.0,0.00134368]
[1741004858378,0.92114183,93216.0,93215.0,0.00134368]
[1741004858808,0.92714183,93216.0,93215.0,0.00134368]
[1741004859014,0.94397081,93216.0,93215.0,0.00134368]
[1741004859219,0.93797081,93216.0,93215.0,0.00134368]
[1741004859653,0.94297081,93216.0,93215.0,0.00134368]
[1741004861969,0.94301081,93216.0,93215.0,0.00134368]
[1741004863646,0.99301081,93216.0,93215.0,0.00134368]
[1741004864613,0.94301081,93216.0,93215.0,0.00134368]
[1741004865806,1.00214183,93216.0,93215.0,0.00134368]
[1741004866126,1.16105827,93216.0,93215.0,0.00134368]
[1741004866338,1.05214183,93216.0,93215.0,0.00134368]
[1741004870380,1.01897142,93216.0,93215.0,0.00134368]
[1741004872034,0.94301142,93216.0,93215.0,0.00134368]
[1741004872209,0.69776619,93216.0,93215.0,0.00134368]
[1741004872829,0.99776619,93216.0,93215.0,0.00134368]
[1741004874267,0.99276619,93216.0,93215.0,0.00134368]
[1741004874465,0.99676619,93216.0,93215.0,0.00134368]
[1741004875110,1.04676619,93216.0,93215.0,0.00134368]
[1741004875670,0.99676619,93216.0,93215.0,0.00134368]
[1741004875870,1.0299366,93216.0,93215.0,0.00134368]
[1741004876072,0.9799366,93216.0,93215.0,0.00134368]
[1741004876311,1.0299366,93216.0,93215.0,0.00134368]
[1741004877073,0.9799366,93216.0,93215.0,0.00134368]
[1741004878119,0.9759366,93216.0,93215.0,0.00134368]
[1741004878232,0.9809366,93216.0,93215.0,0.00134368]
[1741004880411,0.99776558,93216.0,93215.0,0.00134368]
[1741004883689,0.99276558,93216.0,93215.0,0.00134368]
[1741004884110,0.99976558,93216.0,93215.0,0.00134368]
[1741004884514,1.04276558,93216.0,93215.0,0.00134368]
[1741004884718,1.0259366,93216.0,93215.0,0.00134368]
[1741004884919,1.0329366,93216.0,93215.0,0.00134368]
[1741004889652,1.14185304,93216.0,93215.0,0.00134368]
[1741004889826,1.0329366,93216.0,93215.0,0.00134368]
[1741004890893,0.9569766,93216.0,93215.0,0.00134368]
[1741004891184,1.0328966,93216.0,93215.0,0.00134368]
[1741004894681,1.04972604,93216.0,93215.0,0.00134368]
[1741004895697,1.0328966,93216.0,93215.0,0.00134368]
[1741004898850,0.9828966,93216.0,93215.0,0.00134368]
[1741004900328,0.9997258,93216.0,93215.0,0.00134368]
[1741004900527,0.9530858,93216.0,93215.0,0.00134368]
[1741004900728,0.8020058,93216.0,93215.0,0.00134368]
[1741004900867,0.8778858,93216.0,93215.0,0.00134368]
[1741004905088,0.9570858,93216.0,93215.0,0.00134368]
[1741004905711,0.9402566,93216.0,93215.0,0.00134368]
[1741004909023,0.8610566,93216.0,93215.0,0.00134368]
[1741004910264,0.87788486,93216.0,93215.0,0.00134368]
[1741004910431,0.80200486,93216.0,93215.0,0.00134368]
[1741004910633,0.87788486,93216.0,93215.0,0.00134368]
[1741004911911,0.57788486,93216.0,93215.0,0.00134368]
[1741004913206,0.50200486,93216.0,93215.0,0.00134368]
[1741004913389,0.57784486,93216.0,93215.0,0.00134368]
[1741004913783,0.50200486,93216.0,93215.0,0.00134368]
[1741004914120,0.57784486,93216.0,93215.0,0.00134368]
[1741004916382,0.5610166,93216.0,93215.0,0.00134368]
[1741004919810,0.6442166,93216.0,93215.0,0.00134368]
[1741004920779,0.96104513,93216.0,93215.0,0.00134368]
[1741004924244,1.05974513,93216.0,93215.0,0.00134368]
[1741004924409,0.98390513,93216.0,93215.0,0.00134368]
[1741004924607,1.05970513,93216.0,93215.0,0.00134368]
[1741004925422,1.0428766,93216.0,93215.0,0.00134368]
[1741004929798,1.05741745,93216.0,93215.0,6.8e-07]
[1741004930135,1.12424772,93216.0,93215.0,6.8e-07]
[1741004930367,1.12424772,93216.0,93162.0,0.0367509]
[1741004930368,0.161008,93163.0,93162.0,0.0367509]
[1741004930509,0.214659,93171.0,93156.0,0.17508]
[1741004930890,0.00697398,93170.0,93156.0,0.01418177]
[1741004931175,0.00149886,93170.0,93156.0,0.01418177]
[1741004931499,0.01683642,93167.0,93156.0,0.01418177]
[1741004931726,0.161018,93157.0,93156.0,0.01418177]
[1741004931927,0.47376815,93157.0,93156.0,0.01418177]
[1741004932222,0.47769335,93157.0,93156.0,0.01418177]
[1741004932421,0.31667535,93157.0,93156.0,0.01418177]
[1741004932596,0.31667535,93157.0,93156.0,0.17520177]
[1741004932800,0.33351463,93157.0,93156.0,0.01418177]
[1741004933351,0.33351463,93157.0,93156.0,0.17520177]
[1741004934325,0.32809057,93157.0,93156.0,0.17520177]
[1741004934523,0.33350108,93157.0,93156.0,0.17520177]
[1741004934733,0.33350108,93157.0,93156.0,0.19840177]
[1741004935894,0.3166618,93157.0,93156.0,0.19840177]
[1741004936183,0.00541051,93157.0,93156.0,0.19840177]
[1741004936676,0.00149886,93179.0,93156.0,0.03738177]
[1741004936881,0.160987,93175.0,93156.0,0.03738177]
[1741004937174,0.00695359,93174.0,93156.0,0.03738177]
[1741004937377,0.160993,93172.0,93157.0,0.00761918]
[1741004937573,0.22160659,93174.0,93157.0,0.00761918]
[1741004937574,0.16249386,93171.0,93157.0,0.00761918]
[1741004937828,0.00694828,93171.0,93157.0,0.00761918]
[1741004938030,0.00694828,93171.0,93170.0,0.160996]
[1741004938310,0.00544942,93171.0,93170.0,0.160996]
[1741004938475,0.00149886,93178.0,93169.0,0.160996]
[1741004938647,0.214647,93176.0,93169.0,0.160996]
[1741004938829,0.00149886,93175.0,93166.0,0.214669]
[1741004939035,0.160992,93173.0,93168.0,0.160998]
[1741004939231,0.001,93171.0,93156.0,0.03738177]
[1741004939435,0.001,93171.0,93164.0,0.161005]
[1741004939739,0.160997,93170.0,93164.0,0.161005]
[1741004939933,0.00149886,93170.0,93156.0,0.03738177]
[1741004940139,0.02228125,93169.0,93156.0,0.03738177]
[1741004940355,0.161001,93167.0,93162.0,0.161009]
[1741004940572,0.02228125,93169.0,93156.0,0.03738177]
[1741004940732,0.0054267,93166.0,93156.0,0.03738177]
[1741004940931,0.0054267,93166.0,93156.0,0.01418177]
[1741004940932,0.00149886,93165.0,93156.0,0.01418177]
[1741004941366,0.161018,93157.0,93156.0,0.01418177]
[1741004941638,0.31275015,93163.0,93156.0,0.01418177]
[1741004941848,0.16645026,93157.0,93156.0,0.01418177]
[1741004942177,0.26055621,93157.0,93156.0,0.01418177]
[1741004942382,0.25905735,93157.0,93156.0,0.01418177]
[1741004942915,0.57030864,93157.0,93156.0,0.01418177]
[1741004943124,1.00210864,93157.0,93156.0,0.01418177]
[1741004943547,1.01023811,93157.0,93156.0,0.01418177]
[1741004944529,0.99339914,93157.0,93156.0,0.01418177]
[1741004946122,0.99939914,93157.0,93156.0,0.01418177]
[1741004946629,0.99339914,93157.0,93156.0,0.01418177]
[1741004947072,0.98526967,93157.0,93156.0,0.01418177]
[1741004947411,0.90946967,93157.0,93156.0,0.01418177]
[1741004947604,0.98526967,93157.0,93156.0,0.01418177]
[1741004948105,0.99226967,93157.0,93156.0,0.01418177]
[1741004948511,0.98526967,93157.0,93156.0,0.01418177]
[1741004948689,0.31665167,93157.0,93156.0,0.01418177]
[1741004948869,0.55946967,93157.0,93156.0,0.01418177]
[1741004949070,0.39845167,93157.0,93156.0,0.01418177]
[1741004949283,0.55946967,93157.0,93156.0,0.01418177]
[1741004951014,0.39845167,93157.0,93156.0,0.01418177]
[1741004951215,0.55946967,93157.0,93156.0,0.01418177]
[1741004952056,0.48366967,93157.0,93156.0,0.01418177]
[1741004952232,0.55942967,93157.0,93156.0,0.01418177]
[1741004953515,0.39841167,93157.0,93156.0,0.01418177]
[1741004954147,0.39841167,93157.0,93156.0,0.17520177]
[1741004954438,0.32265167,93157.0,93156.0,0.01418177]
[1741004954626,0.33949064,93157.0,93156.0,0.17520177]
[1741004954851,0.33949064,93157.0,93156.0,0.01418177]
[1741004954995,0.32265167,93157.0,93156.0,0.17520177]
[1741004955204,0.32265167,93157.0,93156.0,0.01418177]
[1741004955424,0.48366967,93157.0,93156.0,0.01418177]
[1741004958241,0.50050853,93157.0,93156.0,0.01418177]
[1741004965707,0.48366967,93157.0,93156.0,0.01418177]
[1741004966107,0.32265167,93157.0,93156.0,0.17520177]
[1741004966306,0.31725129,93157.0,93156.0,0.01418177]